bitfinex-derivatives/quotes_ETHF0:USTF0_20260117
["timestamp","ask_amount","ask_price","bid_price","bid_amount"]
[1768692482537,0.97597185,3307.9,3306.6,0.15126]
[1768692484738,0.97597185,3307.9,3306.6,0.29178159]
[1768692484938,0.97597185,3307.9,3306.7,0.97597185]
[1768692485138,0.97597185,3308.3,3306.9,1.11649344]
[1768692485339,0.99194935,3308.2,3307.0,0.14052159]
[1768692485641,0.97597185,3308.3,3307.0,0.14052159]
[1768692485831,0.99196251,3308.2,3307.0,0.14052159]
[1768692486032,0.97597185,3308.3,3307.0,0.14052159]
[1768692486336,0.99196251,3308.2,3307.0,0.14052159]
[1768692486534,0.97597185,3308.3,3307.0,0.14052159]
[1768692486735,0.99199425,3308.2,3307.0,0.14052159]
[1768692486936,0.97597185,3308.3,3307.0,0.14052159]
[1768692487141,0.99199425,3308.2,3307.0,0.14052159]
[1768692487338,0.97597185,3308.3,3307.0,0.14052159]
[1768692487543,0.9920326,3308.2,3307.0,0.14052159]
[1768692487736,0.97597185,3308.3,3307.0,0.14052159]
[1768692487936,0.9920326,3308.2,3307.0,0.14052159]
[1768692488140,0.97597185,3308.3,3307.0,0.14052159]
[1768692488442,0.99207801,3308.2,3307.0,0.14052159]
[1768692488634,0.97597185,3308.3,3307.0,0.14052159]
[1768692488836,0.99207801,3308.2,3307.0,0.14052159]
[1768692489035,0.97597185,3308.3,3307.0,0.14052159]
[1768692489238,0.99207801,3308.2,3307.0,0.14052159]
[1768692489538,0.97597185,3308.3,3307.0,0.14052159]
[1768692489751,0.99213135,3308.2,3307.0,0.14052159]
[1768692489940,0.97597185,3308.3,3307.0,0.14052159]
[1768692490140,0.99213135,3308.2,3307.0,0.14052159]
[1768692490340,0.97597185,3308.3,3307.0,0.14052159]
[1768692490540,0.99219405,3308.2,3307.0,0.14052159]
[1768692490742,0.97597185,3308.3,3307.0,0.14052159]
[1768692490940,0.99219405,3308.2,3307.0,0.14052159]
[1768692491143,0.97597185,3308.3,3307.0,0.14052159]
[1768692491342,0.99226839,3308.2,3307.0,0.14052159]
[1768692491542,0.97597185,3308.3,3307.0,0.14052159]
[1768692491756,0.99226839,3308.2,3307.0,0.14052159]
[1768692491948,0.97597185,3308.3,3307.0,0.14052159]
[1768692492245,0.99226839,3308.2,3307.0,0.14052159]
[1768692492449,0.97597185,3308.3,3307.0,0.14052159]
[1768692492647,0.99235258,3308.2,3307.0,0.14052159]
[1768692492837,0.97597185,3308.3,3307.0,0.14052159]
[1768692493040,0.99235258,3308.2,3307.0,0.14052159]
[1768692493241,0.97597185,3308.3,3307.0,0.14052159]
[1768692493441,0.99242409,3308.2,3307.0,0.14052159]
[1768692493642,0.97597185,3308.0,3306.6,1.12723185]
[1768692494953,0.97597185,3308.0,3306.6,0.15126]
[1768692496447,0.97597185,3308.0,3306.6,0.29178159]
[1768692500555,0.97597185,3308.0,3306.7,0.97597185]
[1768692507265,0.97597185,3308.0,3306.6,1.26775344]
[1768692508063,0.97597185,3308.0,3306.7,0.13383309]
[1768692508462,0.97597185,3308.0,3306.7,1.10980494]
[1768692509160,0.97597185,3308.0,3306.6,0.28509309]
[1768692509363,0.97614621,3308.2,3306.6,0.13383309]
[1768692509554,0.99272553,3308.1,3306.6,0.13383309]
[1768692509762,0.99272553,3308.0,3306.6,0.13383309]
[1768692510065,0.97614621,3308.2,3306.6,0.13383309]
[1768692510258,0.99272639,3308.1,3306.6,0.13383309]
[1768692510458,0.99272639,3308.0,3306.6,0.13383309]
[1768692510659,0.97614621,3308.2,3306.6,0.13383309]
[1768692510971,0.99267011,3308.1,3306.6,0.13383309]
[1768692511167,0.99267011,3308.0,3306.6,0.13383309]
[1768692511370,0.97614621,3308.2,3306.6,0.13383309]
[1768692511570,0.99266511,3308.1,3306.6,0.13383309]
[1768692511764,0.99266511,3308.0,3306.6,0.13383309]
[1768692511958,0.97614621,3308.2,3306.6,0.13383309]
[1768692512160,0.99257236,3308.1,3306.6,0.13383309]
[1768692512360,0.99257236,3308.0,3306.6,0.13383309]
[1768692512554,0.97614621,3308.2,3306.6,0.13383309]
[1768692512760,0.99258022,3308.1,3306.6,0.13383309]
[1768692512965,0.99258022,3308.0,3306.6,0.13383309]
[1768692513165,0.97614621,3308.2,3306.6,0.13383309]
[1768692513470,0.9925463,3308.1,3306.6,0.13383309]
[1768692513668,0.9925463,3308.0,3306.5,0.00318666]
[1768692513854,0.99257097,3307.9,3306.5,0.14238416]
[1768692514060,0.99257097,3307.8,3306.5,0.14238416]
[1768692514263,0.97614621,3308.2,3306.5,0.14238416]
[1768692514463,0.99235924,3308.1,3306.5,0.14238416]
[1768692514764,0.99235924,3308.0,3306.5,0.14238416]
[1768692514972,0.99235924,3307.9,3306.5,0.14238416]
[1768692515173,0.99235924,3307.8,3306.5,0.14238416]
[1768692515469,0.97614621,3308.2,3306.5,0.14238416]
[1768692515680,0.99220305,3308.1,3306.5,0.14238416]
[1768692515856,0.99220305,3308.0,3306.5,0.14238416]
[1768692516056,0.99220305,3307.9,3306.5,0.14238416]
[1768692516268,0.99220305,3307.8,3306.5,0.14238416]
[1768692516573,0.01433714,3308.1,3306.5,0.14238416]
[1768692516774,1.00642177,3308.0,3306.5,0.00318666]
[1768692516962,0.99208463,3307.9,3306.5,0.00318666]
[1768692517661,0.01433714,3307.7,3305.6,0.1391975]
[1768692517860,0.97614621,3307.4,3305.6,0.1391975]
[1768692518362,0.01433714,3307.7,3305.6,0.1391975]
[1768692518567,0.99166747,3307.6,3305.6,0.1391975]
[1768692518756,0.99166747,3307.5,3305.6,0.14230242]
[1768692518959,0.01433714,3307.7,3305.6,0.14230242]
[1768692519162,0.99166747,3307.6,3305.6,0.14230242]
[1768692519371,0.01433714,3307.7,3305.6,0.14230242]
[1768692519574,0.99137549,3307.6,3305.6,0.14230242]
[1768692519872,1.12734621,3308.0,3305.7,0.1391975]
[1768692520073,0.99137522,3307.9,3305.7,0.1391975]
[1768692520275,0.99137522,3307.8,3305.7,0.1391975]
[1768692520470,0.99137522,3307.7,3305.7,0.1391975]
[1768692520773,0.99137522,3307.6,3305.7,0.1391975]
[1768692520969,0.01064131,3307.9,3305.7,0.1391975]
[1768692521271,0.99114732,3307.8,3305.7,0.1391975]
[1768692521570,0.99114732,3307.7,3305.7,0.1391975]
[1768692521783,0.99114732,3307.6,3305.7,0.1391975]
[1768692521959,0.01064131,3307.9,3305.7,0.1391975]
[1768692522265,0.99096794,3307.8,3305.7,0.1391975]
[1768692522467,0.99096794,3307.7,3305.7,0.1391975]
[1768692522677,0.99096794,3307.6,3305.7,0.1391975]
[1768692522863,0.01064131,3307.9,3305.7,0.1391975]
[1768692523063,0.99082065,3307.8,3305.7,0.1391975]
[1768692523274,0.99082065,3307.7,3305.7,0.1391975]
[1768692523467,0.99082065,3307.6,3305.7,0.1391975]
[1768692523669,0.01064131,3307.9,3305.7,0.1391975]
[1768692523879,0.99070135,3307.8,3305.7,0.1391975]
[1768692524173,0.99070135,3307.7,3305.7,0.1391975]
[1768692524470,0.99070135,3307.6,3305.7,0.1391975]
[1768692524667,0.01064131,3307.9,3305.7,0.1391975]
[1768692524867,0.99060914,3307.8,3305.7,0.1391975]
[1768692525071,0.99060914,3307.7,3305.7,0.1391975]
[1768692525273,0.99060914,3307.6,3305.7,0.1391975]
[1768692525465,0.01064131,3307.9,3305.7,0.1391975]
[1768692525662,0.99053721,3307.8,3305.7,0.1391975]
[1768692525858,0.99053721,3307.7,3305.7,0.1391975]
[1768692526069,0.99053721,3307.6,3305.7,0.1391975]
[1768692526364,0.01064131,3307.9,3305.7,0.1391975]
[1768692526572,0.99048626,3307.8,3305.7,0.1391975]
[1768692526771,0.99048626,3307.7,3305.7,0.1391975]
[1768692526960,0.99048626,3307.6,3305.7,0.1391975]
[1768692527160,0.01064131,3307.9,3305.7,0.1391975]
[1768692527360,0.99043453,3307.8,3305.7,0.1391975]
[1768692527565,1.00110503,3307.7,3305.7,0.1391975]
[1768692527767,0.99043453,3307.6,3305.7,0.1391975]
[1768692527973,0.0106705,3307.7,3305.7,0.1391975]
[1768692528165,0.99043497,3307.6,3305.7,0.1391975]
[1768692528361,0.0106705,3307.7,3305.7,0.1391975]
[1768692528577,0.99039951,3307.6,3305.7,0.1391975]
[1768692528778,0.0106705,3307.7,3305.7,0.1391975]
[1768692529077,0.99040974,3307.6,3305.7,0.1391975]
[1768692529286,0.0106705,3307.7,3305.7,0.1391975]
[1768692529473,0.99035529,3307.6,3305.7,0.1391975]
[1768692529774,0.0106705,3307.7,3305.7,0.1391975]
[1768692529965,0.99035529,3307.6,3305.7,0.1391975]
[1768692530166,0.0106705,3307.7,3305.7,0.1391975]
[1768692530368,0.99032064,3307.6,3305.7,0.1391975]
[1768692530578,0.0106705,3307.7,3305.7,0.1391975]
[1768692530770,0.99031989,3307.6,3305.7,0.1391975]
[1768692530972,0.0106705,3307.7,3305.7,0.1391975]
[1768692531172,0.99032007,3307.6,3305.7,0.1391975]
[1768692531373,0.0106705,3307.7,3305.7,0.1391975]
[1768692531575,0.99030682,3307.6,3305.7,0.1391975]
[1768692531777,0.0106705,3307.7,3305.7,0.1391975]
[1768692531984,0.99030682,3307.6,3305.7,0.1391975]
[1768692532278,0.0106705,3307.7,3305.7,0.1391975]
[1768692532479,0.99031247,3307.6,3305.7,0.1391975]
[1768692532779,0.0106705,3307.7,3305.7,0.1391975]
[1768692533076,0.99031247,3307.6,3305.7,0.1391975]
[1768692533279,0.0106705,3307.7,3305.7,0.1391975]
[1768692533467,0.99033849,3307.6,3305.7,0.1391975]
[1768692533667,0.0106705,3307.7,3305.7,0.1391975]
[1768692533865,0.99033849,3307.6,3305.7,0.1391975]
[1768692534079,0.0106705,3307.7,3305.7,0.1391975]
[1768692534377,0.99033932,3307.6,3305.7,0.1391975]
[1768692534576,0.0106705,3307.7,3305.7,0.1391975]
[1768692534778,0.99038457,3307.6,3305.7,0.1391975]
[1768692535076,0.0106705,3307.7,3305.7,0.1391975]
[1768692535276,0.99038457,3307.6,3305.7,0.1391975]
[1768692535476,0.0106705,3307.7,3305.7,0.1391975]
[1768692535674,0.99045214,3307.6,3305.7,0.1391975]
[1768692535876,0.0106705,3307.7,3305.7,0.1391975]
[1768692536077,0.99045214,3307.6,3305.7,0.1391975]
[1768692536278,0.99054286,3307.5,3305.7,0.1391975]
[1768692536478,0.0106705,3307.7,3305.7,0.1391975]
[1768692536678,0.99054287,3307.6,3305.7,0.1391975]
[1768692536880,0.99054287,3307.5,3305.7,0.1391975]
[1768692537180,0.0106705,3307.7,3305.7,0.1391975]
[1768692537380,0.99065906,3307.6,3305.7,0.1391975]
[1768692537571,0.99065906,3307.5,3305.7,0.1391975]
[1768692537771,0.0106705,3307.7,3305.7,0.1391975]
[1768692538078,0.99065916,3307.6,3305.7,0.1391975]
[1768692538278,0.99065916,3307.5,3305.7,0.1391975]
[1768692538473,0.0106705,3307.7,3305.7,0.1391975]
[1768692538673,0.9908031,3307.6,3305.7,0.1391975]
[1768692538873,0.9908031,3307.5,3305.7,0.1391975]
[1768692539073,0.0106705,3307.7,3305.7,0.1391975]
[1768692539281,0.9908031,3307.6,3305.7,0.1391975]
[1768692539471,0.9908031,3307.5,3305.7,0.1391975]
[1768692539668,0.0106705,3307.7,3305.7,0.1391975]
[1768692539970,0.99097662,3307.6,3305.7,0.1391975]
[1768692540167,0.99097662,3307.5,3305.7,0.1391975]
[1768692540375,0.0106705,3307.7,3305.7,0.1391975]
[1768692540566,0.99110323,3307.6,3305.7,0.1391975]
[1768692540772,0.99110323,3307.5,3305.7,0.1391975]
[1768692540969,0.0106705,3307.7,3305.7,0.1391975]
[1768692541167,0.99110323,3307.6,3305.7,0.1391975]
[1768692541371,0.99110323,3307.5,3305.7,0.1391975]
[1768692541581,0.0106705,3307.7,3305.7,0.1391975]
[1768692541781,0.99127871,3307.6,3305.7,0.1391975]
[1768692541982,0.99127871,3307.5,3305.7,0.1391975]
[1768692542183,0.99145473,3307.4,3305.7,0.1391975]
[1768692542484,0.0106705,3307.7,3305.7,0.1391975]
[1768692542681,0.99147159,3307.6,3305.7,0.1391975]
[1768692542878,0.99147159,3307.5,3305.7,0.1391975]
[1768692543085,0.99147159,3307.4,3305.7,0.1391975]
[1768692543284,0.0106705,3307.7,3305.7,0.1391975]
[1768692543583,0.99175607,3307.6,3305.7,0.1391975]
[1768692543784,0.99175607,3307.5,3305.7,0.1391975]
[1768692543984,0.99175607,3307.4,3305.7,0.1391975]
[1768692544183,0.0106705,3307.7,3305.7,0.1391975]
[1768692544385,0.99189057,3307.6,3305.7,0.1391975]
[1768692544577,0.99189057,3307.5,3305.7,0.1391975]
[1768692544777,0.99189057,3307.4,3305.7,0.1391975]
[1768692544978,0.0106705,3307.7,3305.7,0.1391975]
[1768692545183,0.991905,3307.6,3305.7,0.1391975]
[1768692545382,0.991905,3307.5,3305.7,0.1391975]
[1768692545577,0.991905,3307.4,3305.7,0.1391975]
[1768692545778,0.0106705,3307.7,3305.7,0.1391975]
[1768692545981,0.99209054,3307.6,3305.7,0.1391975]
[1768692546284,0.99209054,3307.5,3305.7,0.1391975]
[1768692546483,0.99209054,3307.4,3305.7,0.1391975]
[1768692546785,0.0106705,3307.7,3305.7,0.1391975]
[1768692546984,0.99234166,3307.6,3305.7,0.1391975]
[1768692547182,0.99234166,3307.5,3305.7,0.1391975]
[1768692547383,0.99234166,3307.4,3305.7,0.1391975]
[1768692547682,0.99234166,3307.3,3305.7,0.1391975]
[1768692547986,0.00319342,3307.3,3305.7,0.1391975]
[1768692569304,0.97961206,3307.3,3306.0,0.13001267]
[1768692573296,0.00319342,3307.3,3306.0,0.13001267]
[1768692573496,0.00319342,3307.3,3306.4,0.13001267]
[1768692599826,0.00319342,3307.3,3306.3,0.97641864]
[1768692599827,0.00319342,3307.3,3306.6,0.13695356]
[1768692600324,0.00319342,3307.3,3306.8,0.13695356]
[1768692616844,2.71324807,3308.6,3307.1,0.13695356]
[1768692617143,1.684,3310.2,3308.4,0.13695356]
[1768692617343,0.97641864,3309.8,3308.4,0.13695356]
[1768692617645,0.99038511,3309.7,3308.4,0.13695356]
[1768692617848,0.99038511,3309.6,3308.4,0.14019966]
[1768692618051,1.96680375,3309.5,3308.4,0.14019966]
[1768692618351,0.97641864,3309.5,3308.4,0.14019966]
[1768692619440,0.00356122,3309.7,3308.4,0.14019966]
[1768692620345,0.00356122,3309.7,3308.9,0.13695356]
[1768692622546,0.97997986,3309.7,3308.9,0.13695356]
[1768692622754,0.97641864,3309.5,3308.9,0.13695356]
[1768692623955,0.97997986,3309.7,3308.9,0.13695356]
[1768692625457,0.00356122,3309.7,3308.9,0.13695356]
[1768692630666,0.97641864,3309.6,3308.9,0.13695356]
[1768692631455,0.00356122,3309.7,3308.9,0.13695356]
[1768692635964,0.00356122,3309.7,3308.4,0.0032461]
[1768692636160,0.97509993,3309.3,3307.4,0.15122]
[1768692637165,0.97509993,3309.3,3307.4,0.00349856]
[1768692637758,0.97509993,3308.9,3307.4,0.00349856]
[1768692638163,0.97509993,3308.9,3307.5,0.13181112]
[1768692638560,1.11146306,3309.3,3307.5,0.13181112]
[1768692638766,0.98528591,3309.2,3307.5,0.13181112]
[1768692638968,0.97509993,3309.3,3307.5,0.13181112]
[1768692639170,0.98528593,3309.2,3307.5,0.13181112]
[1768692639374,0.97509993,3309.3,3307.5,0.13181112]
[1768692639572,0.15115,3309.1,3307.5,0.13181112]
[1768692642480,1.12625993,3308.9,3307.4,0.00349856]
[1768692642871,0.98678617,3308.8,3307.4,0.00349856]
[1768692643073,1.12625993,3308.9,3307.4,0.00349856]
[1768692643272,0.98680139,3308.8,3307.4,0.00349856]
[1768692643467,1.12625993,3308.9,3307.4,0.00349856]
[1768692643675,0.987193,3308.8,3307.4,0.00349856]
[1768692643878,0.15116,3308.8,3307.4,0.00349856]
[1768692644079,0.98720822,3308.7,3307.4,0.00349856]
[1768692644279,0.97509993,3308.5,3307.4,0.00349856]
[1768692644580,0.15116,3308.8,3307.4,0.00349856]
[1768692644877,0.98757701,3308.7,3307.4,0.00349856]
[1768692645076,0.98757701,3308.6,3307.4,0.00349856]
[1768692645275,0.15116,3308.8,3307.4,0.00349856]
[1768692645475,0.98797682,3308.7,3307.4,0.00349856]
[1768692645670,0.15116,3308.8,3307.4,0.00349856]
[1768692645671,0.98797682,3308.6,3307.4,0.00349856]
[1768692645871,0.15116,3308.8,3307.4,0.00349856]
[1768692646176,0.98797682,3308.7,3307.4,0.00349856]
[1768692646383,0.98797682,3308.6,3307.4,0.00349856]
[1768692646681,0.98797682,3308.5,3307.4,0.00349856]
[1768692646872,0.15116,3308.8,3307.4,0.00349856]
[1768692647073,0.98842113,3308.7,3307.4,0.00349856]
[1768692647378,0.98842113,3308.6,3307.4,0.00349856]
[1768692647579,0.98842113,3308.5,3307.4,0.00349856]
[1768692647778,0.15116,3308.8,3307.4,0.00349856]
[1768692648079,0.98817085,3308.7,3307.4,0.00349856]
[1768692648281,0.98817085,3308.6,3307.4,0.00349856]
[1768692648470,0.98817085,3308.5,3307.4,0.00349856]
[1768692648672,0.15116,3308.8,3307.4,0.00349856]
[1768692648871,0.98795673,3308.7,3307.4,0.00349856]
[1768692649068,0.98795673,3308.6,3307.4,0.00349856]
[1768692649279,0.98795673,3308.5,3307.4,0.00349856]
[1768692649479,0.15116,3308.8,3307.4,0.00349856]
[1768692649683,0.98777143,3308.7,3307.4,0.00349856]
[1768692649883,0.98777143,3308.6,3307.4,0.00349856]
[1768692650077,0.98777143,3308.5,3307.4,0.00349856]
[1768692650277,1.684,3308.4,3307.4,0.00349856]
[1768692659697,1.684,3308.4,3307.4,0.00202089]
[1768692660395,0.98838891,3308.3,3307.4,0.00202089]
[1768692660597,1.684,3308.4,3307.4,0.00202089]
[1768692660804,0.9883891,3308.3,3307.4,0.00202089]
[1768692661006,1.684,3308.4,3307.4,0.00202089]
[1768692661192,0.98838891,3308.3,3307.4,0.00202089]
[1768692661487,1.684,3308.4,3307.4,0.00202089]
[1768692661690,0.98864429,3308.3,3307.4,0.00202089]
[1768692661890,1.684,3308.4,3307.4,0.00202089]
[1768692662092,0.98905401,3308.3,3306.7,0.13903008]
[1768692662303,0.12750185,3308.1,3306.3,0.13903008]
[1768692662499,0.97509993,3307.8,3306.3,0.13903008]
[1768692662703,0.98954148,3307.7,3305.6,0.13903008]
[1768692662998,0.97509993,3307.8,3305.6,0.13903008]
[1768692663197,0.98953936,3307.7,3305.9,0.13903008]
[1768692663398,0.1512,3308.0,3305.9,0.13903008]
[1768692663597,0.98961826,3307.9,3305.9,0.13903008]
[1768692663796,0.98961826,3307.8,3305.9,0.13903008]
[1768692663997,0.98961826,3307.7,3305.9,0.13903008]
[1768692664198,0.1512,3308.0,3305.9,0.13903008]
[1768692664403,0.98989369,3307.9,3305.9,0.13903008]
[1768692664597,0.98989369,3307.8,3305.9,0.13903008]
[1768692664901,2.67489369,3307.7,3305.9,0.13903008]
[1768692665100,1.685,3307.7,3305.9,0.13903008]
[1768692667098,1.685,3307.8,3305.9,0.13903008]
[1768692667304,0.99032512,3307.7,3305.9,0.13903008]
[1768692667604,0.99032512,3307.6,3305.9,0.13903008]
[1768692667798,1.685,3307.8,3305.9,0.13903008]
[1768692667997,0.99061463,3307.7,3305.9,0.13903008]
[1768692668297,0.99053836,3307.6,3305.9,0.13903008]
[1768692668602,1.8362,3308.0,3306.3,0.13903008]
[1768692668905,0.99049684,3307.9,3306.3,0.13903008]
[1768692669105,1.8362,3308.0,3306.3,0.13903008]
[1768692669406,0.99047867,3307.9,3306.3,0.13903008]
[1768692669603,1.8362,3308.0,3306.3,0.13903008]
[1768692669802,0.9905395,3307.9,3306.3,0.13903008]
[1768692670106,1.8362,3308.0,3306.3,0.13903008]
[1768692670302,0.99053797,3307.9,3306.3,0.13903008]
[1768692670508,1.685,3308.2,3306.3,0.13903008]
[1768692670700,0.99061489,3308.1,3306.3,0.13903008]
[1768692671006,0.99061489,3308.0,3306.3,0.13903008]
[1768692671305,0.99061489,3307.9,3306.3,0.13903008]
[1768692671612,1.685,3308.2,3306.3,0.13903008]
[1768692671904,0.99072264,3308.1,3306.3,0.13903008]
[1768692672104,0.99072264,3308.0,3306.3,0.13903008]
[1768692672405,0.99072264,3307.9,3306.3,0.13903008]
[1768692672609,1.685,3308.2,3306.3,0.13903008]
[1768692672804,0.99085942,3308.1,3306.3,0.13903008]
[1768692673004,0.99085942,3308.0,3306.3,0.13903008]
[1768692673195,0.99085942,3307.9,3306.3,0.13903008]
[1768692673398,1.685,3308.2,3306.3,0.13903008]
[1768692673598,0.99090945,3308.1,3306.3,0.13903008]
[1768692673800,0.99090945,3308.0,3306.3,0.13903008]
[1768692674004,0.99090945,3307.9,3306.3,0.13903008]
[1768692674311,1.685,3308.2,3306.3,0.13903008]
[1768692674608,0.99092318,3308.1,3306.3,0.13903008]
[1768692674902,0.99092318,3308.0,3306.3,0.13903008]
[1768692675108,0.99092318,3307.9,3306.3,0.13903008]
[1768692675305,0.15118,3308.5,3306.3,0.13903008]
[1768692675601,2.67594605,3308.4,3306.3,0.13903008]
[1768692675805,0.99094605,3308.3,3306.3,0.13903008]
[1768692675994,0.99094605,3308.2,3306.3,0.13903008]
[1768692676196,0.99094605,3308.1,3306.3,0.13903008]
[1768692676510,0.99094605,3308.0,3306.3,0.13903008]
[1768692676810,0.99094605,3307.9,3306.3,0.13903008]
[1768692677005,1.685,3308.4,3306.3,0.13903008]
[1768692677211,0.99097679,3308.3,3306.3,0.13903008]
[1768692677408,0.99097679,3308.2,3306.3,0.13903008]
[1768692677608,0.99097679,3308.1,3306.3,0.13903008]
[1768692677808,0.99097679,3308.0,3306.3,0.13903008]
[1768692678003,0.99097679,3307.9,3306.3,0.13903008]
[1768692678204,1.685,3308.4,3306.3,0.13903008]
[1768692678510,0.99106223,3308.3,3306.3,0.13903008]
[1768692678719,0.99106223,3308.2,3306.3,0.13903008]
[1768692678903,0.99106223,3308.1,3306.3,0.13903008]
[1768692679205,0.99106223,3308.0,3306.3,0.13903008]
[1768692679396,0.99106223,3307.9,3306.3,0.13903008]
[1768692679597,1.685,3308.4,3306.3,0.13903008]
[1768692679812,0.99111767,3308.3,3306.3,0.13903008]
[1768692680007,0.99111767,3308.2,3306.3,0.13903008]
[1768692680210,0.99111767,3308.1,3306.3,0.13903008]
[1768692680514,0.99111767,3308.0,3306.3,0.13903008]
[1768692680712,0.99111767,3307.9,3306.3,0.13903008]
[1768692680914,1.685,3308.4,3306.3,0.13903008]
[1768692681114,0.9911815,3308.3,3306.3,0.13903008]
[1768692681308,0.9911815,3308.2,3306.3,0.13903008]
[1768692681514,0.9911815,3308.1,3306.3,0.13903008]
[1768692681714,0.9911815,3308.0,3306.3,0.13903008]
[1768692681915,0.9911815,3307.9,3306.3,0.13903008]
[1768692682111,1.685,3308.4,3306.3,0.13903008]
[1768692682316,0.99128774,3308.3,3306.3,0.13903008]
[1768692682616,0.99128774,3308.2,3306.3,0.13903008]
[1768692682807,0.99128774,3308.1,3306.3,0.13903008]
[1768692683007,0.99128774,3308.0,3306.3,0.13903008]
[1768692683209,0.99128774,3307.9,3306.3,0.13903008]
[1768692683408,1.685,3308.4,3306.3,0.13903008]
[1768692683707,0.99141586,3308.3,3306.3,0.13903008]
[1768692683918,0.99141586,3308.2,3306.3,0.13903008]
[1768692684216,0.99141586,3308.1,3306.3,0.13903008]
[1768692684417,0.99141586,3308.0,3306.3,0.13903008]
[1768692684619,0.99141586,3307.9,3306.3,0.13903008]
[1768692684814,1.685,3308.4,3306.3,0.13903008]
[1768692685014,0.99150934,3308.3,3306.3,0.13903008]
[1768692685216,0.99150934,3308.2,3306.3,0.13903008]
[1768692685517,0.99150934,3308.1,3306.3,0.13903008]
[1768692685815,0.99150934,3308.0,3306.3,0.13903008]
[1768692686016,0.99150934,3307.9,3306.3,0.13903008]
[1768692686219,1.685,3308.4,3306.3,0.13903008]
[1768692686518,0.99174848,3308.3,3306.3,0.13903008]
[1768692686716,0.99174848,3308.2,3306.3,0.13903008]
[1768692687017,0.99174848,3308.1,3306.3,0.13903008]
[1768692687217,0.99174848,3308.0,3306.3,0.13903008]
[1768692687417,0.99174848,3307.9,3306.3,0.13903008]
[1768692687623,0.28026394,3308.5,3306.3,0.13903008]
[1768692687819,0.99188753,3308.4,3306.3,0.13903008]
[1768692688019,0.99188753,3308.3,3306.3,0.13903008]
[1768692688219,0.99188753,3308.2,3306.3,0.13903008]
[1768692688515,0.99188753,3308.1,3306.3,0.13903008]
[1768692688706,0.99188753,3308.0,3306.3,0.13903008]
[1768692688911,1.96526394,3308.5,3306.4,0.14077398]
[1768692689105,0.99201764,3308.4,3306.4,0.14077398]
[1768692689320,0.99201764,3308.3,3306.4,0.14077398]
[1768692689509,1.96526394,3308.5,3306.4,0.14077398]
[1768692689510,0.99201764,3308.2,3306.4,0.14077398]
[1768692689709,1.96526394,3308.5,3306.4,0.14077398]
[1768692689710,0.99201764,3308.1,3306.4,0.14077398]
[1768692689921,0.99201764,3308.0,3306.4,0.14077398]
[1768692690123,1.96526394,3308.5,3306.4,0.14077398]
[1768692690309,0.99215613,3308.4,3306.4,0.14077398]
[1768692690516,0.99215613,3308.3,3306.7,0.14077398]
[1768692690714,0.99215613,3308.2,3306.7,0.14077398]
[1768692691017,0.99215613,3308.1,3306.7,0.14077398]
[1768692691207,0.15118,3308.5,3306.7,0.14077398]
[1768692691412,0.99215498,3308.4,3306.7,0.14077398]
[1768692691611,0.15118,3308.5,3306.7,0.14077398]
[1768692691612,0.99215498,3308.3,3306.7,0.14077398]
[1768692691824,0.99215498,3308.2,3306.7,0.14077398]
[1768692692022,0.15118,3308.5,3306.7,0.14077398]
[1768692692222,0.99202786,3308.4,3306.7,0.14077398]
[1768692692423,0.99202786,3308.3,3306.7,0.14077398]
[1768692692620,0.99202786,3308.2,3306.7,0.14077398]
[1768692692819,0.15118,3308.5,3306.7,0.14077398]
[1768692693122,0.99043597,3308.4,3306.7,0.14077398]
[1768692693420,0.99043597,3308.3,3307.1,0.97573521]
[1768692693627,0.99043597,3308.2,3307.1,0.97573521]
[1768692693925,0.15118,3308.5,3307.1,0.97573521]
[1768692694222,0.99041193,3308.4,3307.1,0.97573521]
[1768692694413,0.99041193,3308.3,3307.1,0.97573521]
[1768692694614,0.99041193,3308.2,3307.1,0.97573521]
[1768692694814,0.15118,3308.5,3307.1,0.97573521]
[1768692695014,0.99037515,3308.4,3307.1,0.97573521]
[1768692695214,0.99037515,3308.3,3307.1,0.97573521]
[1768692695415,0.99037515,3308.2,3307.1,0.97573521]
[1768692695713,0.15118,3308.5,3307.1,0.97573521]
[1768692695913,0.99035806,3308.4,3307.1,0.97573521]
[1768692696109,0.99035806,3308.3,3307.1,0.97573521]
[1768692696313,0.99035806,3308.2,3307.1,0.97573521]
[1768692696514,0.15118,3308.5,3307.1,0.97573521]
[1768692696725,0.99036882,3308.4,3307.1,0.97573521]
[1768692696926,0.99036882,3308.3,3307.1,0.97573521]
[1768692697118,0.99036882,3308.2,3307.1,0.97573521]
[1768692697318,0.15118,3308.5,3307.1,0.97573521]
[1768692697627,0.99040552,3308.4,3307.1,0.97573521]
[1768692697814,0.99040552,3308.3,3307.1,0.97573521]
[1768692698019,0.99040552,3308.2,3307.1,0.97573521]
[1768692698224,0.15118,3308.5,3307.1,0.97573521]
[1768692698519,0.99046881,3308.4,3307.1,0.97573521]
[1768692698719,0.99046881,3308.3,3307.1,0.97573521]
[1768692698916,0.99046881,3308.2,3307.1,0.97573521]
[1768692699112,0.15118,3308.5,3307.1,0.97573521]
[1768692699312,0.99043472,3308.4,3307.1,0.97573521]
[1768692699516,0.99043472,3308.3,3307.1,0.97573521]
[1768692699718,0.99043472,3308.2,3307.1,0.97573521]
[1768692699915,0.15118,3308.5,3307.1,0.97573521]
[1768692700118,0.99043491,3308.4,3307.1,0.97573521]
[1768692700326,0.15118,3308.5,3307.1,0.97573521]
[1768692700327,0.99043491,3308.3,3307.1,0.97573521]
[1768692700528,0.99043491,3308.2,3307.1,0.97573521]
[1768692700728,0.15118,3308.5,3307.1,0.97573521]
[1768692701032,0.99041441,3308.4,3307.1,0.97573521]
[1768692701330,0.99041441,3308.3,3307.1,0.97573521]
[1768692701518,0.99041441,3308.2,3307.1,0.97573521]
[1768692701722,0.15118,3308.5,3307.1,0.97573521]
[1768692701921,0.99040288,3308.4,3307.1,0.97573521]
[1768692702122,0.99040288,3308.3,3307.1,0.97573521]
[1768692702324,0.99040288,3308.2,3307.1,0.97573521]
[1768692702522,0.15118,3308.5,3307.2,0.13011123]
[1768692702837,0.99038507,3308.4,3307.2,0.13011123]
[1768692703027,0.99038507,3308.3,3307.2,0.13011123]
[1768692703228,0.99038507,3308.2,3307.2,0.13011123]
[1768692703430,0.15118,3308.5,3307.2,0.13011123]
[1768692703630,0.99032524,3308.4,3307.2,0.13011123]
[1768692703833,0.99032524,3308.3,3307.2,0.13011123]
[1768692704132,0.99032524,3308.2,3307.2,0.13011123]
[1768692704332,0.15118,3308.5,3307.2,0.13011123]
[1768692704533,0.99031205,3308.4,3307.2,0.13011123]
[1768692704738,0.99031205,3308.3,3307.2,0.13011123]
[1768692704942,0.99031205,3308.2,3307.2,0.13011123]
[1768692705241,0.15118,3308.5,3307.2,0.13011123]
[1768692705538,0.99030621,3308.4,3307.2,0.13011123]
[1768692705737,0.99030621,3308.3,3307.2,0.13011123]
[1768692705941,0.99030621,3308.2,3307.2,0.13011123]
[1768692706240,0.15118,3308.5,3307.2,0.13011123]
[1768692706537,0.99030989,3308.4,3307.2,0.13011123]
[1768692706739,0.97573521,3308.7,3307.2,0.13011123]